bitfinex/quotes_ETHUSD_20241101
["timestamp","ask_amount","ask_price","bid_price","bid_amount"]
[1730456591929,3.96837,2520.0,2519.8,0.8103]
[1730456592430,3.96837,2520.0,2519.9,0.04428185]
[1730456593627,3.9681,2520.1,2519.5,4.0404401]
[1730456593628,7.93634,2520.1,2519.5,4.0404401]
[1730456593866,7.93634,2520.1,2519.6,0.04453558]
[1730456594074,3.9683,2520.0,2519.6,0.04453558]
[1730456594577,3.9681,2520.1,2519.6,0.04453558]
[1730456594869,3.9673,2520.6,2520.1,0.7857]
[1730456595033,7.93475,2520.6,2520.1,0.7857]
[1730456595236,3.9675,2520.5,2520.2,0.04458648]
[1730456595843,3.9673,2520.6,2520.2,0.04458648]
[1730456596363,7.93474,2520.6,2520.2,0.04458648]
[1730456596686,3.9673,2520.6,2520.2,0.04458648]
[1730456597248,3.96755,2520.5,2520.2,0.04458648]
[1730456597570,7.93475,2520.6,2520.2,0.04458648]
[1730456597975,0.7548,2520.9,2520.2,0.04458648]
[1730456597976,3.96778,2520.3,2520.2,0.04458648]
[1730456598573,3.9681,2520.1,2519.8,0.7703]
[1730456599249,3.9681,2520.1,2519.5,3.96894]
[1730456599250,3.96787,2520.3,2519.5,0.7703]
[1730456599451,3.96865,2519.8,2519.5,0.7703]
[1730456599653,7.93731,2519.8,2519.5,0.7703]
[1730456599859,3.96888,2519.6,2519.3,1.22307924]
[1730456600280,3.96888,2519.6,2519.3,0.8086]
[1730456600849,3.96863,2519.8,2519.3,0.8086]
[1730456601170,3.96873,2519.7,2519.3,0.8086]
[1730456601376,3.96863,2519.8,2519.3,0.88797825]
[1730456601585,3.96842,2519.9,2519.4,3.96919]
[1730456601896,3.96857,2519.8,2519.3,0.8086]
[1730456602096,3.96857,2519.8,2519.3,0.88797818]
[1730456602574,3.96875,2519.7,2519.3,0.8086]
[1730456602754,3.96857,2519.8,2519.3,0.8086]
[1730456602949,3.96875,2519.7,2519.3,0.8086]
[1730456603601,3.96857,2519.8,2519.3,4.77794]
[1730456603878,3.96881,2519.7,2519.3,0.8086]
[1730456604298,3.96857,2519.8,2519.3,0.8086]
[1730456604610,3.96857,2519.8,2519.3,4.77793]
[1730456605288,3.96835,2520.0,2519.3,4.77788]
[1730456605486,7.93674,2520.0,2519.5,4.78116]
[1730456605711,3.96835,2520.0,2519.5,4.78116]
[1730456606017,7.9367,2520.0,2519.5,4.78116]
[1730456606308,3.96835,2520.0,2519.5,0.8122]
[1730456606509,7.93673,2520.0,2519.5,0.8122]
[1730456606714,3.96853,2519.9,2519.5,0.8122]
[1730456607007,0.811,2520.3,2519.5,0.8122]
[1730456607008,3.9687,2519.8,2519.5,0.8122]
[1730456607173,3.96888,2519.6,2519.5,0.8122]
[1730456607877,3.96888,2519.6,2519.0,0.41453301]
[1730456607878,3.96907,2519.5,2519.2,0.7788]
[1730456608507,3.96935,2519.3,2518.8,0.7669]
[1730456608706,3.9692,2519.4,2518.9,3.96996]
[1730456608891,3.9692,2519.4,2518.9,4.04935068]
[1730456610518,3.9692,2519.4,2519.0,0.04394974]
[1730456610675,3.96874,2519.7,2519.1,4.76534]
[1730456611190,3.96874,2519.7,2519.2,0.04392545]
[1730456611580,3.96874,2519.7,2519.2,4.01339545]
[1730456612007,3.96778,2520.3,2519.7,3.9687]
[1730456612207,3.96778,2520.3,2519.7,7.93727]
[1730456612418,3.96778,2520.3,2519.8,0.04357857]
[1730456612629,3.96778,2520.3,2519.7,7.93719]
[1730456612790,3.96778,2520.3,2519.7,3.96857]
[1730456613119,3.96819,2520.1,2519.8,0.04349424]
[1730456613291,3.96788,2520.3,2519.8,0.04349424]
[1730456613618,7.93574,2520.3,2519.7,3.96862]
[1730456613924,3.96786,2520.3,2519.8,0.12285399]
[1730456614100,3.96786,2520.3,2519.8,0.0434916]
[1730456614294,3.96786,2520.3,2519.8,0.12285399]
[1730456614499,3.96786,2520.3,2519.7,3.96862]
[1730456614716,3.96786,2520.3,2519.9,0.04344127]
[1730456614913,3.96786,2520.3,2520.0,0.7978]
[1730456615085,3.96786,2520.3,2520.0,0.84119094]
[1730456615916,0.7876,2520.7,2520.0,0.04339094]
[1730456616118,3.96809,2520.1,2520.0,0.04339094]
[1730456616423,3.96809,2520.1,2519.7,0.7664]
[1730456616424,3.9684,2520.0,2519.7,0.7664]
[1730456616936,3.96809,2520.1,2519.7,0.7664]
[1730456619220,3.96826,2520.0,2519.7,0.7664]
[1730456619413,3.96856,2519.8,2519.7,0.7664]
[1730456619745,3.96856,2519.8,2518.4,5.20262653]
[1730456619746,3.96847,2519.9,2519.4,3.96919]
[1730456620039,3.96847,2519.9,2519.3,3.96924]
[1730456620716,3.96847,2519.9,2519.3,7.93851]
[1730456620925,3.96831,2520.0,2519.5,3.96904]
[1730456621824,3.96841,2519.9,2519.4,3.96909]
[1730456622202,7.93641,2520.1,2519.6,0.7981]
[1730456622638,3.96819,2520.1,2519.6,0.7981]
[1730456622849,3.96788,2520.3,2519.6,0.7981]
[1730456623005,3.9681,2520.1,2519.6,4.76698]
[1730456623206,3.96819,2520.1,2519.7,0.07936841]
[1730456623535,3.96746,2520.5,2519.8,3.96848]
[1730456623735,0.7895,2520.6,2519.8,3.96848]
[1730456623947,0.7895,2520.6,2519.9,0.04330689]
[1730456623948,3.96786,2520.3,2519.9,0.04330689]
[1730456624308,3.96797,2520.2,2519.6,4.76687]
[1730456624507,3.96786,2520.3,2520.0,0.04325656]
[1730456624717,7.93573,2520.3,2519.7,4.04806432]
[1730456624924,7.93573,2520.3,2519.6,4.76687]
[1730456624925,3.96802,2520.2,2520.1,0.04320624]
[1730456625140,3.96834,2520.0,2519.6,0.7981]
[1730456625315,3.96856,2519.9,2519.6,0.7981]
[1730456625517,3.96861,2519.8,2519.7,0.04337858]
[1730456625925,3.96841,2519.9,2519.3,4.74446]
[1730456626262,3.96859,2519.8,2519.3,0.7752]
[1730456626412,7.93738,2519.8,2519.3,0.7752]
[1730456626609,3.96867,2519.8,2519.4,0.04355859]
[1730456627047,3.96872,2519.7,2519.4,0.04355859]
[1730456627255,3.96867,2519.8,2519.4,0.04355859]
[1730456627418,7.93731,2519.8,2519.4,0.04355859]
[1730456627613,3.96865,2519.8,2519.4,0.04355859]
[1730456628756,3.96836,2520.0,2519.4,0.04355859]
[1730456629052,3.9686,2519.8,2519.4,0.04355859]
[1730456629756,7.93727,2519.8,2519.4,0.04355859]
[1730456629965,3.9686,2519.8,2519.4,0.04355859]
[1730456631312,3.96883,2519.7,2519.4,0.04355859]
[1730456631516,7.93726,2519.8,2519.4,0.04355859]
[1730456631971,3.9686,2519.8,2519.4,0.04355859]
[1730456632632,3.96832,2520.0,2519.4,0.04355859]
[1730456632834,3.96841,2519.9,2519.4,4.04846933]
[1730456633149,3.96841,2519.9,2519.5,0.04374276]
[1730456634274,3.96841,2519.9,2519.3,4.74447]
[1730456634475,3.96841,2519.9,2519.4,0.04379311]
[1730456635741,0.7592,2520.1,2519.4,0.04379311]
[1730456636068,3.96904,2519.5,2519.4,0.04379311]
[1730456636375,3.96904,2519.5,2519.1,0.8328]
[1730456636579,3.96904,2519.5,2519.4,0.04225487]
[1730456636873,3.96904,2519.5,2519.4,0.04226013]
[1730456637071,3.96904,2519.5,2519.1,0.8328]
[1730456637271,3.96904,2519.5,2519.2,0.04236083]
[1730456639680,3.96924,2519.4,2519.2,0.04236083]
[1730456639969,3.96929,2519.4,2519.2,0.04236083]
[1730456640578,3.96935,2519.3,2519.2,0.04236083]
[1730456641103,3.96977,2519.1,2518.6,0.7513]
[1730456641400,3.96977,2519.1,2518.5,0.059545]
[1730456641401,3.97007,2518.9,2518.5,0.059545]
[1730456641598,7.94014,2518.9,2518.5,0.059545]
[1730456641764,3.97007,2518.9,2518.5,0.059545]
[1730456642467,3.97016,2518.8,2518.5,0.059545]
[1730456643197,3.97007,2518.9,2518.5,0.059545]
[1730456644576,0.5190547,2518.9,2518.5,0.059545]
[1730456644773,3.97045,2518.6,2518.5,0.059545]
[1730456645375,4.73745,2518.6,2518.5,0.059545]
[1730456646519,3.97089,2518.4,2517.9,0.8262]
[1730456647104,3.97086,2518.4,2517.9,0.8262]
[1730456647692,3.97112,2518.2,2517.9,0.8262]
[1730456648770,3.97137,2518.1,2517.7,0.7863]
[1730456648967,3.97148,2518.0,2517.7,0.7863]
[1730456649169,3.97148,2518.0,2517.5,0.7863]
[1730456649170,3.97158,2517.9,2517.5,0.7863]
[1730456649365,3.97196,2517.7,2517.3,0.7863]
[1730456649602,0.7749,2518.1,2517.1,3.97281]
[1730456649603,3.97156,2517.9,2517.1,3.97281]
[1730456649906,3.97204,2517.6,2517.1,3.97281]
[1730456650063,3.97204,2517.6,2517.0,4.75924]
[1730456650273,0.7749,2517.8,2517.0,0.7863]
[1730456650509,0.7749,2517.8,2517.1,0.03965514]
[1730456650510,3.97244,2517.4,2517.1,0.03965514]
[1730456650878,3.97266,2517.2,2517.1,0.03965514]
[1730456651065,3.97266,2517.2,2516.7,0.7863]
[1730456651272,0.7749,2517.3,2516.8,0.03980648]
[1730456651470,3.97308,2517.0,2516.5,0.81507896]
[1730456651707,3.97323,2516.9,2516.6,0.0399074]
[1730456651869,3.97308,2517.0,2516.6,0.0399074]
[1730456652073,3.97333,2516.8,2516.6,0.0399074]
[1730456652810,3.97333,2516.8,2516.5,0.05957896]
[1730456653105,3.97333,2516.8,2516.6,0.0399074]
[1730456653329,3.97266,2517.2,2516.6,0.0399074]
[1730456653499,3.97345,2516.7,2516.6,0.0399074]
[1730456654212,3.97422,2516.3,2515.6,0.801]
[1730456654388,3.97426,2516.2,2515.6,4.77607]
[1730456654595,3.97422,2516.3,2515.7,0.04036171]
[1730456654794,3.9742,2516.3,2515.7,0.04036171]
[1730456654981,3.97358,2516.7,2516.0,3.97446]
[1730456655184,3.9737,2516.6,2516.0,3.97446]
[1730456655401,0.7988,2516.8,2516.2,0.7783]
[1730456655602,3.97321,2516.9,2516.3,3.97404]
[1730456655929,0.7695,2517.0,2516.3,4.0141088]
[1730456656424,4.7425,2517.0,2516.5,3.97367]
[1730456656920,4.7425,2517.0,2516.6,0.0399074]
[1730456657218,3.97314,2516.9,2516.6,0.0399074]
[1730456657433,7.94642,2516.9,2516.3,3.97405]
[1730456657720,3.97314,2516.9,2516.3,3.97405]
[1730456658023,3.97314,2516.9,2516.4,0.04000833]
[1730456658521,3.97355,2516.7,2516.2,0.7783]
[1730456658721,0.5217396,2516.9,2516.5,0.04039853]
[1730456658891,3.97325,2516.9,2516.2,4.75244]
[1730456659099,3.97325,2516.9,2516.3,0.04049947]
[1730456659620,4.74257,2517.0,2516.3,4.01454947]
[1730456659992,4.78443,2517.4,2516.7,3.97334]
[1730456660192,4.78443,2517.4,2516.5,3.97374]
[1730456660193,4.450953,2517.3,2516.5,3.97374]
[1730456660392,7.94583,2517.1,2516.8,0.04024715]
[1730456660626,3.9731,2517.0,2516.4,4.726]
[1730456661221,3.9731,2517.0,2516.5,0.04039853]
[1730456661606,3.97327,2516.9,2516.5,0.04039853]
[1730456661830,3.97356,2516.7,2516.5,0.04039853]
[1730456662129,3.97356,2516.7,2516.1,4.73256]
[1730456662282,3.97361,2516.6,2516.1,4.73256]
[1730456662689,4.74316,2516.7,2516.1,4.73249]
[1730456663020,0.7696,2516.7,2516.1,0.7582]
[1730456663225,3.97392,2516.5,2516.1,0.7582]
[1730456663525,3.97419,2516.3,2515.8,0.8247]
[1730456663707,3.97345,2516.8,2516.2,3.97417]
[1730456663908,3.97345,2516.8,2516.2,7.94829]
[1730456664114,0.8208,2516.9,2516.3,0.8247]
[1730456664430,5.573371,2516.9,2516.3,4.79877]
[1730456665520,3.97301,2517.0,2516.5,3.97368]
[1730456665912,11.76631,2517.2,2516.5,3.97368]
[1730456666112,3.97273,2517.2,2516.7,3.97344]
[1730456666308,3.97283,2517.1,2516.5,4.05313229]
[1730456666510,3.97273,2517.2,2516.5,4.05313229]
[1730456666511,3.97273,2517.2,2516.5,3.97366]
[1730456666823,4.4949973,2517.2,2516.5,3.97366]
[1730456667328,3.97282,2517.1,2516.5,7.94732]
[1730456667633,3.97282,2517.1,2516.5,3.97366]
[1730456668208,3.97273,2517.2,2516.5,3.97366]
[1730456668418,3.97303,2517.0,2516.5,3.97366]
[1730456668598,3.97273,2517.2,2516.5,3.97366]
[1730456668807,3.97273,2517.2,2516.6,3.97352]
[1730456669102,7.94554,2517.2,2516.6,3.97352]
[1730456669301,3.97273,2517.2,2516.6,3.97352]
[1730456669487,7.74394,2517.4,2516.4,7.94786]
[1730456669488,3.7715,2517.4,2516.4,7.94786]
[1730456669689,3.7715,2517.4,2516.3,0.8247]
[1730456669690,3.97213,2517.6,2517.0,3.97285]
[1730456669930,3.97213,2517.6,2517.0,7.94574]
[1730456670095,3.97213,2517.6,2517.0,3.97285]
[1730456670518,3.97181,2517.8,2517.2,3.97266]
[1730456670803,3.97189,2517.7,2517.2,3.97266]
[1730456671008,3.97189,2517.7,2517.3,0.03909842]
[1730456671637,3.97189,2517.7,2517.2,3.97266]
[1730456671839,3.97189,2517.7,2517.4,0.03904536]
[1730456672024,3.97189,2517.7,2517.3,0.03909579]
[1730456672231,3.97178,2517.8,2517.5,0.03899493]
[1730456672443,3.97189,2517.7,2517.4,0.03904536]
[1730456672611,3.97189,2517.7,2517.2,3.97265]
[1730456673106,3.97189,2517.7,2517.0,7.94568]
[1730456673306,3.97205,2517.6,2517.3,0.03909579]
[1730456673506,3.97205,2517.6,2517.1,3.97281]
[1730456673702,3.7629,2517.9,2516.9,0.7575]
[1730456673909,3.97236,2517.4,2516.9,4.73063]
[1730456674203,3.97229,2517.5,2516.9,0.7575]
[1730456674404,4.74805,2518.2,2517.3,0.8332]
[1730456674627,0.7769,2518.2,2517.5,3.97214]
[1730456674810,4.74811,2518.2,2517.3,4.80562]
[1730456675027,4.74811,2518.2,2517.6,3.97202]
[1730456675457,4.74811,2518.2,2517.7,3.97185]
[1730456675621,3.97087,2518.4,2517.8,4.77531]
[1730456675814,3.97087,2518.4,2517.9,3.97154]
[1730456676216,4.77584,2518.5,2517.9,3.97154]
[1730456676440,4.77584,2518.5,2517.9,7.94299]
[1730456676753,3.97051,2518.6,2517.9,3.97145]
[1730456676956,3.97071,2518.5,2517.9,3.97145]
[1730456677137,3.97051,2518.6,2517.9,3.97145]
[1730456677511,3.97051,2518.6,2518.0,0.7502]
[1730456677712,3.97023,2518.8,2518.1,3.97115]
[1730456677916,3.97059,2518.6,2518.0,4.72158]
[1730456678327,3.97059,2518.6,2518.1,3.97123]
[1730456678748,3.97022,2518.8,2518.2,0.0794202]
[1730456678923,3.97022,2518.8,2518.3,0.7679]
[1730456679251,3.0,2518.9,2518.4,3.97077]
[1730456679454,3.0,2518.9,2518.3,4.73869]
[1730456679455,4.762,2519.0,2518.3,4.73869]
[1730456679955,3.97008,2518.9,2518.3,4.73869]
[1730456680650,3.97016,2518.8,2518.3,4.73869]
[1730456680856,4.762,2519.0,2517.9,3.97143]
[1730456680857,3.97061,2518.5,2517.9,3.97143]
[1730456681153,3.97046,2518.6,2518.0,4.79389]
[1730456681518,3.97071,2518.5,2518.0,0.8225]
[1730456681814,1.584717,2518.5,2517.6,0.8225]
[1730456682081,3.97165,2517.9,2517.6,0.8225]
[1730456682840,3.97165,2517.9,2517.4,0.8182]
[1730456683216,7.94335,2517.9,2517.4,0.8182]
[1730456683420,3.97165,2517.9,2517.4,0.8182]
[1730456684235,3.97165,2517.9,2517.1,7.94547]
[1730456684236,3.97192,2517.7,2517.1,7.94547]
[1730456684566,3.97192,2517.7,2517.2,4.87021479]
[1730456684855,3.97192,2517.7,2517.2,0.8182]
[1730456685460,3.97165,2517.9,2517.2,0.89764469]
[1730456685638,3.97165,2517.9,2517.2,0.8182]
[1730456685838,3.97165,2517.9,2517.3,3.97241]
[1730456687145,3.97174,2517.8,2517.3,3.97241]
[1730456688055,3.97165,2517.9,2517.3,3.97241]
[1730456688262,7.94332,2517.9,2517.3,3.97241]
[1730456688975,3.97176,2517.8,2517.3,3.97241]
[1730456689436,3.972,2517.7,2517.2,0.8182]
[1730456689641,0.6065256,2517.7,2517.2,0.8182]
[1730456689836,0.6065256,2517.7,2516.2,4.73818271]
[1730456689837,3.97315,2516.9,2516.3,4.77986]
[1730456690039,0.8225,2517.0,2516.3,0.8058]
[1730456690040,4.57727035,2516.8,2516.3,0.8058]
[1730456690472,4.79551,2517.0,2516.3,0.8058]
[1730456690676,3.97315,2516.9,2516.3,0.8058]
[1730456692439,3.9733,2516.8,2516.3,0.8058]
[1730456694085,3.97317,2516.9,2516.3,0.8058]
[1730456694996,3.97335,2516.8,2516.3,0.8058]
[1730456695795,3.97364,2516.6,2516.3,0.8058]
[1730456696490,3.97364,2516.6,2516.1,0.8326]
[1730456696491,7.94736,2516.6,2516.1,0.8326]
[1730456696679,3.97364,2516.6,2516.1,0.8326]
[1730456696868,7.94735,2516.6,2516.1,0.8326]
[1730456697051,3.97364,2516.6,2516.1,0.8326]
[1730456697556,3.97364,2516.6,2515.9,3.97471]
[1730456697557,3.97407,2516.4,2515.8,0.764]
[1730456698205,3.97409,2516.3,2515.8,0.764]
[1730456700096,3.97426,2516.2,2515.8,0.764]
[1730456700281,3.9744,2516.1,2515.8,0.764]
[1730456700482,3.9744,2516.1,2515.3,3.97557]
[1730456700483,1.61042448,2516.1,2515.3,0.7828]
[1730456700708,3.97498,2515.8,2515.3,0.7828]
[1730456701267,3.97519,2515.6,2515.3,0.7828]
[1730456701586,3.97498,2515.8,2515.3,0.7828]
[1730456701791,3.97528,2515.6,2515.3,0.7828]
[1730456702293,3.97528,2515.6,2515.0,0.7577]
[1730456702595,7.95112,2515.4,2515.0,0.7577]
[1730456702803,3.97576,2515.3,2515.0,0.7577]
[1730456703419,3.97551,2515.4,2515.0,0.7577]
[1730456703420,3.97587,2515.2,2515.0,0.7577]
[1730456703584,3.97551,2515.4,2515.0,0.7577]
[1730456703781,3.97514,2515.7,2515.1,0.02614702]
[1730456703979,3.97514,2515.7,2515.1,0.07950799]
[1730456704279,3.97537,2515.5,2515.0,0.7577]
[1730456706154,3.97512,2515.7,2515.0,4.73375]
[1730456707016,3.97421,2516.3,2515.2,0.8305]
[1730456707185,3.97377,2516.5,2515.9,3.9747]
[1730456707384,4.77932,2516.7,2516.1,3.97437]
[1730456707385,4.77936,2516.7,2516.1,3.97437]
[1730456707616,3.97319,2516.9,2516.1,3.97429]
[1730456707802,3.97319,2516.9,2516.2,3.97423]
[1730456708003,3.97319,2516.9,2516.1,3.97429]
[1730456708208,3.97346,2516.7,2516.1,7.9486]
[1730456708530,0.7753,2517.0,2516.0,0.8305]
[1730456708531,3.97377,2516.5,2516.0,0.8305]
[1730456708828,7.94764,2516.5,2516.0,0.8305]
[1730456708977,3.97395,2516.4,2516.0,0.8305]
[1730456709177,3.97426,2516.2,2516.0,0.8305]
[1730456709381,4.74926,2516.4,2515.7,4.77823]
[1730456709595,8.72328,2516.4,2515.7,4.77823]
[1730456709921,8.72328,2516.4,2515.8,3.97479]
[1730456709922,3.97396,2516.4,2515.8,3.97479]
[1730456710222,3.97396,2516.4,2515.8,7.94957]
[1730456710513,3.97366,2516.6,2515.9,3.97469]
[1730456710721,3.0,2516.7,2516.2,0.8032]
[1730456710921,3.0,2516.7,2516.2,4.77741]
[1730456711482,3.97338,2516.8,2516.2,0.8032]
[1730456711681,3.97338,2516.8,2516.3,3.97408]
[1730456712585,3.97338,2516.8,2516.2,4.77735]
[1730456712782,3.97338,2516.8,2516.2,0.8032]
[1730456712981,3.97338,2516.8,2516.2,4.77742]
[1730456713182,7.9468,2516.8,2516.2,0.8032]
[1730456713388,3.97338,2516.8,2516.2,0.8032]
[1730456713589,7.94681,2516.8,2516.2,0.8032]
[1730456713822,3.97348,2516.7,2516.2,0.8032]
[1730456714609,3.97348,2516.7,2515.9,3.97464]
[1730456714610,3.97456,2516.0,2515.9,0.7907]
[1730456714793,3.97456,2516.0,2515.6,0.7907]
[1730456716235,3.97434,2516.2,2515.6,0.7907]
[1730456716452,3.97459,2516.0,2515.6,0.7907]
[1730456717299,3.97473,2515.9,2515.6,0.7907]
[1730456717969,3.97459,2516.0,2515.6,0.7907]
[1730456718399,0.7639,2516.1,2515.6,0.7907]
[1730456718603,4.73842,2516.1,2515.6,0.7907]
[1730456718929,3.9744,2516.1,2515.6,4.76589]
[1730456719434,3.97432,2516.2,2515.6,4.76589]
[1730456719675,3.97432,2516.2,2515.6,0.7907]
[1730456719676,3.9744,2516.1,2515.6,0.7907]
[1730456720630,3.97432,2516.2,2515.6,4.7658]
[1730456720933,7.94865,2516.2,2515.6,4.7658]
[1730456721611,3.97432,2516.2,2515.6,4.7658]
[1730456721812,3.97443,2516.1,2515.6,4.7658]
[1730456722033,3.97432,2516.2,2515.6,0.7907]
[1730456722347,3.97402,2516.4,2515.8,3.97483]
[1730456722639,3.97408,2516.3,2515.7,4.05451824]
[1730456723829,3.97408,2516.3,2515.8,3.97485]
[1730456724032,3.97425,2516.2,2515.7,4.05449824]
[1730456724655,3.97402,2516.4,2515.8,3.97487]
[1730456724817,3.9742,2516.3,2515.7,0.07949824]
[1730456725355,3.9742,2516.3,2515.7,4.05443824]
[1730456726155,3.97402,2516.4,2515.8,3.97475]
[1730456726358,3.9741,2516.3,2515.8,3.97475]
[1730456728027,3.9741,2516.3,2515.7,3.97494]
[1730456729261,3.9741,2516.3,2515.8,3.97486]
[1730456730062,3.97466,2516.0,2515.6,0.7907]
[1730456730279,3.9744,2516.1,2515.6,0.7907]
[1730456730562,3.97472,2515.9,2515.6,0.7907]
[1730456732229,0.75,2516.2,2515.3,0.7575]
[1730456732579,3.0,2516.3,2515.1,0.7575]
[1730456732580,3.97529,2515.6,2515.1,0.7575]
[1730456732869,3.97529,2515.6,2515.1,4.73345]
[1730456734165,7.94984,2515.8,2515.2,3.97574]
[1730456734367,3.97504,2515.7,2515.2,3.97574]
[1730456734936,3.97488,2515.8,2515.2,3.97574]
[1730456735241,3.9752,2515.6,2515.2,3.97574]
[1730456735444,3.97488,2515.8,2515.2,3.97574]
[1730456735445,3.97507,2515.7,2515.2,3.97574]
[1730456736330,3.97519,2515.6,2515.1,4.73341]
[1730456736637,3.97488,2515.8,2515.1,0.7575]
[1730456736837,7.94986,2515.8,2515.2,3.9758]
[1730456737468,0.8053,2516.0,2515.1,0.83700869]
[1730456737469,3.97527,2515.6,2515.1,4.73338]
[1730456738852,7.95001,2515.8,2515.2,3.97572]
[1730456739054,3.97512,2515.7,2515.2,3.97572]
[1730456739772,3.97498,2515.8,2515.2,7.95145]
[1730456739980,3.97498,2515.8,2515.2,7.95144]
[1730456740163,3.97504,2515.7,2515.2,3.97572]
[1730456740366,3.97503,2515.7,2515.1,4.73343]
[1730456740662,3.97503,2515.7,2515.1,0.7575]
[1730456740977,3.97474,2515.9,2515.2,4.05522676]
[1730456741284,7.94959,2515.9,2515.3,3.97558]
[1730456741581,3.97474,2515.9,2515.3,3.97556]
[1730456741782,7.94955,2515.9,2515.3,3.97556]
[1730456741988,3.97494,2515.8,2515.3,3.97556]
[1730456742165,3.97494,2515.8,2515.2,7.95144]
[1730456742352,3.97494,2515.8,2515.2,3.97572]
[1730456742547,3.97474,2515.9,2515.3,3.97566]
[1730456742788,3.97474,2515.9,2515.4,4.0550019]
[1730456743088,3.97474,2515.9,2515.4,3.9755]
[1730456743276,7.94959,2515.9,2515.4,3.9755]
[1730456743778,3.97513,2515.7,2515.2,3.97572]
[1730456744192,3.97513,2515.7,2515.3,3.97566]
[1730456744486,3.9748,2515.9,2515.2,3.97572]
[1730456744487,3.9748,2515.9,2515.4,3.97549]
[1730456744664,7.94962,2515.9,2515.4,3.97549]
[1730456744988,6.9745,2516.1,2515.5,0.83750263]
[1730456745196,6.9745,2516.1,2515.6,3.97517]
[1730456745555,3.97419,2516.3,2515.6,3.97517]
[1730456745754,3.97419,2516.3,2515.9,0.758]
[1730456746209,7.94836,2516.3,2515.9,0.758]
[1730456746648,3.97417,2516.3,2515.9,0.758]
[1730456747084,7.94838,2516.3,2515.9,0.758]
[1730456747286,3.97417,2516.3,2515.9,0.758]
[1730456749156,4.79147,2516.5,2515.9,4.73263]
[1730456749357,3.97355,2516.7,2516.1,3.9743]
[1730456749587,3.97355,2516.7,2516.2,0.7824]
[1730456749804,3.97355,2516.7,2516.2,4.75656]
[1730456750202,3.97355,2516.7,2516.2,0.7824]
[1730456750399,3.97355,2516.7,2516.2,4.75661]
[1730456750609,7.94712,2516.7,2516.2,0.7824]
[1730456750891,3.97369,2516.6,2516.2,0.7824]
[1730456751069,3.97362,2516.6,2516.2,0.7824]
[1730456751455,3.97355,2516.7,2516.2,0.7824]
[1730456751655,3.97355,2516.7,2516.2,4.75655]
[1730456752052,3.97322,2516.9,2516.2,0.7824]
[1730456752284,3.97322,2516.9,2516.3,3.97399]
[1730456752473,3.97322,2516.9,2516.3,3.97398]
[1730456752985,3.97322,2516.9,2516.4,0.07946974]
[1730456753261,7.94645,2516.9,2516.3,3.97398]
[1730456753473,3.97322,2516.9,2516.3,3.97398]
[1730456753873,7.94646,2516.9,2516.3,3.97398]
[1730456754089,3.97333,2516.8,2516.3,3.97398]
[1730456754290,3.97362,2516.6,2516.2,0.7824]
[1730456754607,3.97333,2516.8,2516.2,4.75662]
[1730456754968,7.94673,2516.8,2516.2,4.75662]
[1730456755400,3.97333,2516.8,2516.3,3.97405]
[1730456755570,3.97315,2516.9,2516.3,3.97405]
[1730456755769,3.97271,2517.2,2516.6,3.97352]
[1730456756003,3.97283,2517.1,2516.6,3.97352]
[1730456756504,3.97243,2517.4,2516.7,4.05282151]
[1730456756702,3.97243,2517.4,2516.8,4.72849]
[1730456756902,7.94493,2517.4,2516.8,4.72849]
[1730456757249,3.97295,2517.1,2516.8,0.7552]
[1730456757358,3.97261,2517.3,2516.8,0.7552]
[1730456758361,6.97228,2517.5,2516.8,0.7552]
[1730456758600,3.97255,2517.3,2516.8,4.72846]
[1730456758767,3.97255,2517.3,2516.8,0.7552]
[1730456758968,3.97267,2517.2,2516.8,0.7552]
[1730456759593,3.97255,2517.3,2516.8,0.7552]
[1730456760378,6.97228,2517.5,2516.8,4.72848]
[1730456760578,3.97251,2517.3,2516.8,0.83465644]
[1730456760770,3.97251,2517.3,2516.8,4.72847]
[1730456760993,3.97251,2517.3,2516.8,4.80792644]
[1730456761194,3.97251,2517.3,2516.8,8.70174]
[1730456761510,3.97236,2517.4,2516.9,3.97313]
[1730456761900,3.97252,2517.3,2516.8,4.72847]
[1730456762246,3.97252,2517.3,2516.8,4.7284]
[1730456762395,3.97228,2517.5,2516.9,3.97303]
[1730456762942,0.7944,2517.9,2517.3,3.9725]
[1730456763093,3.97181,2517.8,2517.3,3.9724]
[1730456763736,3.9714,2518.0,2517.5,0.7801]
[1730456763909,3.9714,2518.0,2517.5,4.75228]
[1730456764108,4.76535,2518.3,2517.6,3.97203]
[1730456764430,3.9711,2518.2,2517.6,3.97203]
[1730456764598,3.9711,2518.2,2517.6,4.05137069]
[1730456764917,3.97095,2518.3,2517.8,3.97168]
[1730456765233,3.97079,2518.4,2517.8,4.7517]
[1730456765404,4.7651,2518.5,2517.8,4.7517]
[1730456765609,3.97093,2518.3,2517.8,4.7517]
[1730456766142,3.97093,2518.3,2517.8,0.7801]
[1730456766349,3.97122,2518.2,2517.8,0.7801]
[1730456766645,3.9711,2518.2,2517.8,0.7801]
[1730456766849,3.97093,2518.3,2517.8,0.7801]
[1730456767645,3.97111,2518.2,2517.8,0.7801]
[1730456767807,3.97093,2518.3,2517.8,0.7801]
[1730456768004,7.94201,2518.3,2517.8,0.7801]
[1730456768209,5.22091,2518.5,2517.8,4.75179]
[1730456768441,3.97086,2518.4,2517.8,4.75174]
[1730456768659,4.44721,2518.5,2517.8,4.75174]
[1730456768812,3.97084,2518.4,2517.8,4.75174]
[1730456769447,3.97102,2518.3,2517.8,0.7801]
[1730456769820,3.97102,2518.3,2517.8,4.75181]
[1730456771016,3.97078,2518.4,2517.8,4.75173]